Cogmind - Beta 14 @@@ ROGUE MODE // 2024.10.24 @ 20:13:21 Player: piracy master Result: Destroyed by Y-54 Guardian with Gatling Laser Performance ------------- Evolutions (3) 1500 Regions Visited (6) 1200 Robots Destroyed (79) 395 Value Destroyed (2945) 2945 Prototype IDs (0) 0 Alien Tech Used (0) 0 Bonus (381) 381 TOTAL SCORE: 6421 Bonus ------- High Alert Combat Kills 381 Cogmind --------- Core Integrity 0/700 Matter 284/300 Energy 92/100 System Corruption 6% Temperature Cool (18) Movement Core (50) Location -7/Factory Parts ------- > --- POWER (2) -------- (None) > --- PROPULSION (3) --- (None) > --- UTILITY (5) ------ Advanced Weight Redist. System Advanced Targeting Computer Advanced Targeting Computer Advanced Targeting Computer > --- WEAPON (3) ------- Backup Laser III > --- INVENTORY (5) ---- Light Treads Peak State ------------ > --- POWER ------------ Light Nuclear Core Light Nuclear Core > --- PROPULSION ------- Light Treads Armored Treads > --- UTILITY ---------- Medium Storage Unit Structural Scanner Core Analyzer Shield Generator > --- WEAPON ----------- Heavy Assault Rifle Gauss Rifle Advanced Assault Cannon > --- INVENTORY -------- Ion Engine Structural Scanner Improved Weapon Shielding Improved Light Armor Plating Rocket Launcher Improved Grenade Launcher [Rating: 29] Favorites ----------- Power Ion Engine Engine Ion Engine Power Core Nuclear Core Propulsion Light Treads Treads Light Treads Leg Improved Carbon-fiber Leg Utility Structural Scanner Device Structural Scanner Storage Medium Storage Unit Processor Advanced Targeting Computer Protection Backup Plating I Weapon Light Assault Rifle Energy Gun Medium Laser Ballistic Gun Light Assault Rifle Ballistic Cannon Advanced Assault Cannon Launcher EMP Blaster Special Weapon Mining Laser Build | -11 -10 -10 -10 -9 -8 -7 ------- Run | Yrd Mat Min Exi Min Mat Fac Slots Evolved 6 | . . . . . 4 2 Power 1 | . . . . . 1 . Propulsion 1 | . . . . . . 1 Utility 3 | . . . . . 2 1 Weapon 1 | . . . . . 1 . Parts Attached 62 | 6 2 . 1 5 33 15 Power 12 | 1 . . . . 9 2 Engine 5 | 1 . . . . 3 1 Core 7 | . . . . . 6 1 Reactor . | . . . . . . . Propulsion 13 | 2 . . . 2 6 3 Treads 12 | 2 . . . 1 6 3 Leg 1 | . . . . 1 . . Wheel . | . . . . . . . Hover . | . . . . . . . Flight . | . . . . . . . Utility 17 | 1 2 . 1 . 9 4 Device 4 | . 1 . . . 3 . Storage 3 | 1 1 . 1 . . . Processor 6 | . . . . . 2 4 Hackware . | . . . . . . . Protection 4 | . . . . . 4 . Artifact . | . . . . . . . Weapon 20 | 2 . . . 3 9 6 Energy Gun 5 | 1 . . . . 1 3 Energy Cannon . | . . . . . . . Ballistic Gun 8 | 1 . . . 2 5 . Ballistic Cannon 2 | . . . . 1 . 1 Launcher 4 | . . . . . 2 2 Special Weapon 1 | . . . . . 1 . Impact Weapon . | . . . . . . . Slashing Weapon . | . . . . . . . Piercing Weapon . | . . . . . . . Special Melee Weapon . | . . . . . . . Unidentified Prototypes . | . . . . . . . Parts Lost 27 | . . . . . 11 16 Power 5 | . . . . . 2 3 Propulsion 6 | . . . . . 2 4 Utility 8 | . . . . . 5 3 Weapon 8 | . . . . . 2 6 Highest Loss Streak 4 | . . . . . 4 4 To Critical Strikes . | . . . . . . . Average Slot Usage (%) 94 | . 96 100 100 100 98 77 Engine 8 | . 14 14 14 14 7 3 Core 6 | . . . . . 10 6 Treads 18 | . 28 28 28 28 17 11 Device 15 | . 11 14 14 14 16 14 Storage 9 | . 14 14 14 14 9 6 Processor 4 | . . . . . 2 13 Protection 3 | . . . . . 6 . Energy Gun 5 | . 14 14 14 6 . 7 Ballistic Gun 15 | . 14 14 14 14 20 3 Ballistic Cannon 2 | . . . . 8 4 . Launcher 1 | . . . . . . 5 Peak Build Rating 29 | 6 7 7 7 17 29 29 Average Rating 17 | 5 6 7 7 10 21 22 On Entrance 9 | . 6 7 7 7 14 23 Naked Turns . | . . . . . . . Heaviest Build 90 | 14 90 90 90 26 41 36 Greatest Support 69 | 40 40 40 40 40 49 69 Greatest Overweight (x) 4 | . 2 2 2 . 1 4 Average Overweight (x) . | . 1 2 1 . . . Largest Inventory Capacity 25 | 8 25 25 25 10 10 10 Average Capacity 12 | 7 21 25 24 10 10 9 Most Carried 7 | 4 3 4 5 6 7 5 Average Carried 3 | . 1 3 4 4 4 2 Final Capacity 25 | 8 25 25 10 10 10 5 Final Carried 6 | . 3 4 4 6 3 1 Class Distribution -------------------- 37% | Mutant 28% | Scavenger-Tank 20% | Gunner 7% | Tank 4% | Scavenger-Gunner Dominant Class ---------------- Mutant | -10/Materials Mutant | -10/Mines Mutant | -10/Exiles Mutant | -9/Mines Scavenger-Tank | -8/Materials Mutant | -7/Factory Resources | -11 -10 -10 -10 -9 -8 -7 ----------- Run | Yrd Mat Min Exi Min Mat Fac Matter Collected 2318 | 213 40 48 . 69 1531 417 Remotely . | . . . . . . . Salvage Created 2544 | . 138 . . 42 1450 914 Parts 156 | . 9 . . 2 106 39 Haulers Intercepted . | . . . . . . . Recyclers Shooed 2 | . . . . . . 2 Parts Field Recycled . | . . . . . . . Retrieved Matter . | . . . . . . . Parts Self-Destructed . | . . . . . . . Prevented . | . . . . . . . Kills | -11 -10 -10 -10 -9 -8 -7 ------- Run | Yrd Mat Min Exi Min Mat Fac Combat Hostiles Destroyed 65 | . 4 . . 1 40 20 Guns 38 | . 4 . . 1 20 13 Cannons 19 | . . . . . 16 3 AOE 7 | . . . . . 4 3 Classes Destroyed 13 | . 2 . . . 8 3 Worker 6 | . . . . . . 6 Builder 3 | . . . . . 3 . Mechanic 1 | . . . . . 1 . Watcher 4 | . . . . . 4 . Swarmer 13 | . 1 . . . 10 2 Grunt 32 | . 3 . . 1 17 11 Brawler 2 | . . . . . 1 1 Duelist 2 | . . . . . . 2 Sentry 10 | . . . . . 8 2 Specialist 2 | . . . . . 2 . Hunter 1 | . . . . . 1 . Programmer 2 | . . . . . . 2 Heavy 1 | . . . . . 1 . Best Kill Streak 6 | . 2 . . 1 6 4 Combat Bots Only 5 | . 2 . . 1 5 3 Max Kills in Single Turn 3 | . 1 . . 1 2 3 Gunslinging . | . . . . . . . Exploded 2 | . . . . . 1 2 Melee . | . . . . . . . Uniques/NPCs Destroyed . | . . . . . . . Combat | -11 -10 -10 -10 -9 -8 -7 -------- Run | Yrd Mat Min Exi Min Mat Fac Hostile Shots Fired 469 | . 7 . . 7 224 231 Missed 134 | . 4 . . 1 61 68 Damage Taken 4635 | . 30 . . 64 2165 2376 Core 989 | . . . . . 279 710 Absorbed by Shields 197 | . . . . . 197 . Redirected to Shielding 103 | . . . . . 103 . Regen/Repaired (Parts) 62 | . . . . . 62 . Core Remaining (%) 83 | 100 . . . 100 49 . Volleys Fired 237 | . 7 . . 3 125 102 Largest 3 | . 2 . . 2 3 3 Hottest 141 | . 70 . . 70 141 105 Shots Fired 525 | . 13 . . 6 348 158 Gun 394 | . 13 . . 6 239 136 Cannon 109 | . . . . . 98 11 Launcher 22 | . . . . . 11 11 Special . | . . . . . . . Kinetic 385 | . 7 . . 3 333 42 Thermal 118 | . 6 . . 3 4 105 Explosive 19 | . . . . . 11 8 Electromagnetic 3 | . . . . . . 3 Robot Hit Streak 33 | . 2 . . 1 14 33 Robot Miss Streak 8 | . 2 . . 3 8 3 Penetration Max 1 | . . . . . 1 . Secondary Targets . | . . . . . . . Shots Hit Robots 308 | . 7 . . 2 174 125 Core Hits 175 | . 6 . . 2 95 72 Critical Kills . | . . . . . . . Critical Parts Destroyed 6 | . . . . . 6 . Critical Strikes 15 | . . . . . 10 5 Burn 4 | . . . . . 1 3 Destroy 6 | . . . . . 6 . Blast 5 | . . . . . 3 2 Melee Attacks . | . . . . . . . Impact . | . . . . . . . Slashing . | . . . . . . . Piercing . | . . . . . . . Sneak Attacks . | . . . . . . . Combat Hostiles . | . . . . . . . Follow-up Attacks . | . . . . . . . Damage Inflicted 6497 | . 91 . . 22 3927 2457 Guns 3664 | . 91 . . 22 2039 1512 Cannons 1429 | . . . . . 1181 248 Explosions 1368 | . . . . . 677 691 Melee . | . . . . . . . Ramming 36 | . . . . . 30 6 Kinetic 3774 | . 66 . . 22 3206 480 Thermal 1451 | . 25 . . . 14 1412 Explosive 1057 | . . . . . 677 380 Electromagnetic 179 | . . . . . . 179 Impact . | . . . . . . . Slashing . | . . . . . . . Piercing . | . . . . . . . Highest Corruption 6 | . . . . . . 6 Average Corruption 4 | . . . . . . 4 Corruption Purged . | . . . . . . . Corruption Blocked . | . . . . . . . Effects 4 | . . . . . . 4 Matter Fused 2 | . . . . . . 2 Heat Flow Errors 1 | . . . . . . 1 Data Loss (major) 1 | . . . . . . 1 Overload Shots . | . . . . . . . Overflow Damage 81 | . . . . . 52 29 Projectiles 15 | . . . . . 15 . Explosions 66 | . . . . . 37 29 Melee . | . . . . . . . Knockbacks 10 | . . . . . 8 2 Impact . | . . . . . . . Kinetic 10 | . . . . . 8 2 Secondary . | . . . . . . . Self-Inflicted Damage 295 | . . . . . 171 124 Shots 10 | . . . . . 6 4 Rammed 12 | . . . . . 10 2 Targets Rammed 12 | . . . . . 10 2 Kicked . | . . . . . . . Crushed . | . . . . . . . Highest Temperature 542 | . 42 . . 63 467 542 Average Temperature 110 | . 16 . . 38 100 145 Received Heat Transfer 1418 | . 12 . . 36 617 753 Effects 27 | . . . . . 8 19 Shutdowns 8 | . . . . . 3 5 Energy Bleed 3 | . . . . . 2 1 Interference 10 | . . . . . 3 7 Matter Decay 2 | . . . . . . 2 Damage (minor) 1 | . . . . . . 1 Damage (major) 3 | . . . . . . 3 Siege Activations . | . . . . . . . Robots Corrupted . | . . . . . . . Combat Hostiles . | . . . . . . . Parts Fried . | . . . . . . . Impact Corruptions . | . . . . . . . Robots Melted 1 | . . . . . . 1 Combat Hostiles 1 | . . . . . . 1 Parts Melted 6 | . . . . . . 6 Heat Transferred 3948 | . 74 . . . 111 3763 Parts Sabotaged . | . . . . . . . Parts Stolen . | . . . . . . . Parts Stripped . | . . . . . . . Power Chain Reactions . | . . . . . . . Alert | -11 -10 -10 -10 -9 -8 -7 ------- Run | Yrd Mat Min Exi Min Mat Fac Peak Influence 774 | . 100 39 . 20 774 750 Initial 352 | . . 39 . . 7 352 Average 363 | . 53 39 . 14 393 547 Maximum Alert Level 3 | . . . . . 3 3 Low Security (%) 35 | 100 100 100 . 100 30 . Level 1 12 | . . . . . 15 14 Level 2 46 | . . . . . 48 77 Level 3 4 | . . . . . 4 8 Level 4 . | . . . . . . . Level 5 . | . . . . . . . High Security . | . . . . . . . Max Security . | . . . . . . . Squads Dispatched 17 | . 2 . . 1 9 5 Investigation 3 | . 1 . . 1 1 . Extermination 1 | . . . . . . 1 Reinforcement 9 | . 1 . . . 7 1 Assault 1 | . . . . . 1 . Garrison 3 | . . . . . . 3 Intercept . | . . . . . . . Searches Triggered . | . . . . . . . Construction Impeded 1 | . . . . . 1 . Haulers Reinforced 1 | . . . . . . 1 Active Scanning Responses . | . . . . . . . Cargo Convoy Interrupts . | . . . . . . . Stealth | -11 -10 -10 -10 -9 -8 -7 --------- Run | Yrd Mat Min Exi Min Mat Fac Distress Signals 5 | . 2 . . . 3 . Communications Jammed . | . . . . . . . Distress Signals . | . . . . . . . Times Spotted 98 | . 8 . . 2 62 26 Peak Tracking Total 5 | . 5 . . 2 5 4 Tactical Retreats 8 | . . . . . 7 1 Traps | -11 -10 -10 -10 -9 -8 -7 ------- Run | Yrd Mat Min Exi Min Mat Fac Traps Triggered 1 | . . . . . . 1 Indirectly . | . . . . . . . Trap Hack Attempts . | . . . . . . . Triggered . | . . . . . . . Disarmed 2 | . . . . . 2 . Reprogrammed . | . . . . . . . Reused . | . . . . . . . Traps Extracted . | . . . . . . . Installed . | . . . . . . . Triggered . | . . . . . . . Machines | -11 -10 -10 -10 -9 -8 -7 ---------- Run | Yrd Mat Min Exi Min Mat Fac Machines Disabled 19 | . . . . . 7 12 Max in Single Turn 5 | . . . . . 2 5 Machines Repaired . | . . . . . . . Machines Dismantled . | . . . . . . . Machines Sabotaged . | . . . . . . . Overloaded Fab Kills . | . . . . . . . Hacking | -11 -10 -10 -10 -9 -8 -7 --------- Run | Yrd Mat Min Exi Min Mat Fac Machines Accessed 9 | . 1 . 1 1 5 1 Terminals 4 | . 1 . . . 3 . Fabricators 1 | . . . . . . 1 Repair Stations 1 | . . . . . 1 . Recycling Units 1 | . . . . . 1 . Scanalyzers . | . . . . . . . Garrison Access . | . . . . . . . Total Hacks 45 | . 3 . 23 1 15 3 Successful 39 | . 1 . 23 1 13 1 Failed 6 | . 2 . . . 2 2 Catastrophic 1 | . . . . . 1 . Database Lockouts . | . . . . . . . Manual . | . . . . . . . Terminals 15 | . 3 . . . 12 . Fabricators 3 | . . . . . . 3 Repair Stations 2 | . . . . . 2 . Recycling Units 1 | . . . . . 1 . Scanalyzers . | . . . . . . . Garrison Access . | . . . . . . . Terminal Hacks 35 | . 1 . 23 1 10 . Record 26 | . . . 23 . 3 . Open Door 1 | . . . . 1 . . Locate Traps 1 | . . . . . 1 . Disarm Traps 1 | . . . . . 1 . Dispatch Records 1 | . 1 . . . . . Maintenance Status 2 | . . . . . 2 . Patrol Status 1 | . . . . . 1 . Hauler Manifests 2 | . . . . . 2 . Fabricator Hacks 1 | . . . . . . 1 Network Status 1 | . . . . . . 1 Repair Station Hacks 2 | . . . . . 2 . Scan Component 1 | . . . . . 1 . Repair 1 | . . . . . 1 . Recycling Unit Hacks 1 | . . . . . 1 . Report Inventory 1 | . . . . . 1 . Scanalyzer . | . . . . . . . Garrison Access Hacks . | . . . . . . . Unauthorized Hacks . | . . . . . . . Terminals . | . . . . . . . Fabricators . | . . . . . . . Repair Stations . | . . . . . . . Recycling Units . | . . . . . . . Scanalyzers . | . . . . . . . Garrison Access . | . . . . . . . Data Cores Recovered . | . . . . . . . Used . | . . . . . . . Hacking Detections 4 | . 1 . . . 2 1 Full Trace Events 1 | . . . . . 1 . Feedback Events . | . . . . . . . Feedback Blocked . | . . . . . . . Robot Schematics Acquired . | . . . . . . . Robots Built . | . . . . . . . Authchips . | . . . . . . . Time . | . . . . . . . Total Robot Build Rating . | . . . . . . . Part Schematics Acquired . | . . . . . . . Parts Built . | . . . . . . . Authchips . | . . . . . . . Time . | . . . . . . . Total Part Build Rating . | . . . . . . . Parts Repaired 1 | . . . . . 1 . Time 38 | . . . . . 38 . Parts Recycled . | . . . . . . . Recycled Matter . | . . . . . . . Retrieved Matter . | . . . . . . . Retrieved Components . | . . . . . . . Parts Scanalyzed . | . . . . . . . Part Schematics Acquired . | . . . . . . . Parts Damaged . | . . . . . . . Bothacking | -11 -10 -10 -10 -9 -8 -7 ------------ Run | Yrd Mat Min Exi Min Mat Fac Used RIF Installer . | . . . . . . . Robots Hacked . | . . . . . . . Non-combat . | . . . . . . . Combat . | . . . . . . . Robot Hacks Applied . | . . . . . . . Relay Couplers Released . | . . . . . . . Fabnet Peak Effective % . | . . . . . . . Robots Rewired . | . . . . . . . Allies Hacked . | . . . . . . . Hacks Repelled . | . . . . . . . Allies | -11 -10 -10 -10 -9 -8 -7 -------- Run | Yrd Mat Min Exi Min Mat Fac Total Allies 1 | . . 1 . . . . Largest Group 1 | . . 1 1 . . . Highest-Rated Group 31 | . . 31 31 . . . Highest-Rated Ally 31 | . . 31 31 . . . Total Orders . | . . . . . . . Ally Attacks . | . . . . . . . Total Damage . | . . . . . . . Kills . | . . . . . . . Allies Corrupted . | . . . . . . . Allies Melted . | . . . . . . . Intel | -11 -10 -10 -10 -9 -8 -7 ------- Run | Yrd Mat Min Exi Min Mat Fac Robot Analysis Total . | . . . . . . . Derelict Logs Recovered 1 | . . 1 . . . . Drone Launches . | . . . . . . . Drone Recoveries . | . . . . . . . Exploration | -11 -10 -10 -10 -9 -8 -7 ------------- Run | Yrd Mat Min Exi Min Mat Fac Turns Passed 5880 | 275 193 238 885 147 3072 1070 Spaces Moved 1968 | 43 63 75 290 78 1022 397 Core 88 | 6 . . . . . 82 Treads 1880 | 37 63 75 290 78 1022 315 Legs . | . . . . . . . Wheels . | . . . . . . . Hover . | . . . . . . . Flight . | . . . . . . . Fastest Speed 50 | 50 160 320 160 160 160 50 Average Speed 197 | 144 264 320 304 160 174 156 Slowest Speed 320 | 160 320 320 320 160 245 250 Overloaded Moves . | . . . . . . . Propulsion Burnouts . | . . . . . . . Robots Hopped . | . . . . . . . Cave-ins Triggered . | . . . . . . . Exploration Rate (%) 28 | 5 20 18 64 20 58 15 Regions Visited 6 Branch Regions 3 Pre-discovered Areas 1 | . . . 1 . . . Known Exits Taken . | . . . . . . . Unknown Exits Taken 6 | 1 1 1 1 1 1 . Scrap Searched 1 | . . . . 1 . . Spaces Dug 12 | . . . . . 12 . Terrain Destroyed 216 | . . . . . 144 72 Melee . | . . . . . . . Projectile 41 | . . . . . 40 1 AOE 175 | . . . . . 104 71 Terrain Rammed . | . . . . . . . Walls Destroyed . | . . . . . . . Machines Disabled . | . . . . . . . Actions | -11 -10 -10 -10 -9 -8 -7 --------- Run | Yrd Mat Min Exi Min Mat Fac Total 3527 | 256 79 75 294 93 2034 696 Wait 1167 | 202 . . . . 803 162 Move 1962 | 42 62 74 289 77 1021 397 Hop . | . . . . . . . Pick Up 60 | 6 6 1 2 5 28 12 Fast Attach . | . . . . . . . Attach 39 | 6 2 . . . 17 14 Detach 1 | . . . . . . 1 Swap 23 | . . . 1 5 16 1 Drop 23 | . 2 . 2 3 14 2 Fire 237 | . 7 . . 3 125 102 Melee . | . . . . . . . Ram 1 | . . . . . . 1 Kick . | . . . . . . . Crush 11 | . . . . . 10 1 Escape Stasis . | . . . . . . . Rewire 3 | . . . . . . 3 Trap . | . . . . . . . Miscellaneous . | . . . . . . . Route ------- -11/Scrapyard -10/Materials -10/Mines -10/Exiles -9/Mines -8/Materials -7/Factory History --------- Turn | Location | Event 6 | -11/Scrapyard | Discovered new exit (range 16) 276 | -11/Scrapyard | Entered Materials 341 | -10/Materials | Build established: Mutant 384 | -10/Materials | Met 8R-AWN 436 | -10/Materials | Discovered new exit (range 6) 469 | -10/Materials | Entered Mines 473 | -10/Mines | Followed 8R-AWN into the Mines 476 | -10/Mines | Received a Rocket Launcher from a helpful Derelict 586 | -10/Mines | Learned Materials security intel 654 | -10/Mines | Escorted by a lone wolf Derelict 691 | -10/Mines | Discovered new exit (range 6) 707 | -10/Mines | Entered Exiles 707 | -10/Exiles | Accompanied by 1 ally 789 | -10/Exiles | Welcomed by 8R-AWN 840 | -10/Exiles | Learned about 8R-AWN's background 856 | -10/Exiles | Met EX-HEX 1023 | -10/Exiles | Met EX-DEC 1222 | -10/Exiles | Visited The Gauntlet 1403 | -10/Exiles | Learned location of Zion (-7) 1573 | -10/Exiles | Discovered new exit (range 14) 1592 | -10/Exiles | Entered Mines 1604 | -9/Mines | Discovered new exit (range 7) 1625 | -9/Mines | Met a Derelict shopkeep closing up shop 1739 | -9/Mines | Entered Materials 1739 | -8/Materials | Evolved 4 slots: Power x1, Utility x2, Weapon x1 2029 | -8/Materials | Build established: Gunner 2793 | -8/Materials | Lost 4 parts (2p2u) 3014 | -8/Materials | Build established: Tank 3534 | -8/Materials | Repaired Nuclear Core 3641 | -8/Materials | Build established: Scavenger-Tank 4539 | -8/Materials | First assault squad dispatched 4660 | -8/Materials | Core integrity fell below 50% 4795 | -8/Materials | Discovered new exit (range 10) 4811 | -8/Materials | Entered Factory 4811 | -7/Factory | Evolved 2 slots: Propulsion x1, Utility x1 5012 | -7/Factory | Garrison activated, responded to threat 5235 | -7/Factory | Lost 4 parts (1p2n1w) 5491 | -7/Factory | Build established: Mutant 5693 | -7/Factory | Lost 3 parts (1n1u1w) 5808 | -7/Factory | Core integrity fell below 50% 5853 | -7/Factory | Lost 3 parts (1p1u1w) 5869 | -7/Factory | Core integrity fell below 20% 5881 | -7/Factory | Destroyed by Y-54 Guardian with Gatling Laser Last Messages --------------- 05823_ R-06 Scavenger collects Corrupted VTOL Module. 05823_ U-05 Engineer lays Concrete. 05825_ R-06 Scavenger collects Corrupted Particle Gun. 05825_ U-05 Engineer lays Concrete. 05827_ L-41 Fighter heat short circuits Imp. Melee Analysis Suite. 05827_ U-05 Engineer lays Concrete. 05833_ L-41 Fighter overheating. 05838_ L-41 Fighter destroyed. 05839_ System corrupted: Substantial component data lost. 05840_ Acquired 37 matter. 05840_ Acquired 39 matter. 05849_ K-01 Serf collects debris. 05871_ Structural Scanner destroyed. 05874_ Imp. Heat Sink melted. 05874_ Imp. Deuterium Engine melted. 05874_ Y-54 Guardian destroyed. Map ----- +----------------------------------------------------+ | ?????????????????????????????????????????????????? | | ?????????????????????????????????????????????????? | | ?????????????????????????????????????????????????? | | ?????????????????????????????????????????????????? | | ?????????????????????????????????????????????????? | | ?????????????????????????????????????????????????? | | ?????????????????????????????????????????????????? | | ?????????????????????????????????????????????????? | | ?????????????????????????????????????????????????? | | ?????????????????????????????????????????????????? | | ?????????????????????????????????????????????????? | | "????????????????????????????????????????????????? | | ? # ??????????????????????????????????????????? | | ?? # ?????????????????????????????????????? | | ?? #+##+##?????????????????????????????????????? | | ?? # ##?????????????????????????????????????? | | ??? # ##?######??????????????????????????????? | | ???? # ###########????????????????????????????? | | ????## ##### ####????????????????????????????? | | ????## % k ##????????????????????????????? | | ????## % % m=########??????????????????????? | | ###### % ########??? ###???????????????? | | ######+##+## % ##??? #######???????????? | | # ! ## ? ##### ????????? | | # ## u ????????? | | + r @ [%! Y u ????????? | | ################ [ Y ????????? | | ################ ##### ????????? | | ! ##???????????????##########???????????? | | ##???????????????######???????????????? | | ##????????????????????????????????????? | | ##????????????????????????????????????? | | ##????????????????????????????????????? | | ##????????????????????????????????????? | | ##????????????????????????????????????? | | #############????????????????????????????????????? | | #############????????????????????????????????????? | | ?????????????????????????????????????????????????? | | ?????????????????????????????????????????????????? | | ?????????????????????????????????????????????????? | | ?????????????????????????????????????????????????? | | ?????????????????????????????????????????????????? | | ?????????????????????????????????????????????????? | | ?????????????????????????????????????????????????? | | ?????????????????????????????????????????????????? | | ?????????????????????????????????????????????????? | | ?????????????????????????????????????????????????? | | ?????????????????????????????????????????????????? | | ?????????????????????????????????????????????????? | | ?????????????????????????????????????????????????? | +----------------------------------------------------+ Best States ------------- Heat Dissipation 34 Energy Generation 23 Energy Capacity 405 Matter Stores 300 Matter Capacity 300 Sight Range 18 Terrain Scan Density 10 Additional Mass Support 9 Armor Coverage 150 Weapon Shielding 66 Evasion (%) 50 Targeting Accuracy 24 Core Analysis 6 Recoil Reduction 3 Item Schematics ----------------- None Robot Schematics ------------------ None Fabricated ------------ Nothing Alien Tech Used ----------------- None Achievements -------------- It's Just You Please Form A Line Shopping List Significant Disruption Challenges ------------ None Game ------ Seed SubdwellerSpectralShotgun Manual? 0 Play Time 00:41:52 Cumulative 3.4 hours Start 2024.10.24 @ 19:33:50 End 2024.10.24 @ 20:13:21 Sessions 1 Manual Loads 0 Difficulty Rogue Special Mode None Game No. 6 Rogue 2 Adventurer 4 Explorer 0 Win Type - Total 0 Types 0/0/0/0/0/0/0/0/0 Lore% 8 Gallery% 9 Achievement% 10 Wizard Run 0 Options --------- Layout 1 ASCII 0 Keyboard 0 Movement Mouse Keybinds 0 Fullscreen 1 Font 24/Smallcaps Map View 50x35 Zoom Use 0% Tactical HUD 1 Map Filters NONE Filters NONE Steam 1 RUN: bfa90494-04c1-4be4-b348-cc98b3d3e1ff